lending/lending_fUSD_20250808
["ID","MTS","AMOUNT","RATE_DAILY","PERIOD"]
[377975345,1754640655673,-151.0,0.00018778,2]
[377975346,1754640655683,-151.0,0.00018778,2]
[377975347,1754640655693,-220.732218,0.00018778,2]
[377975348,1754640655703,-153.164224,0.00018778,2]
[377975349,1754640655713,-151.0,0.00018778,2]
[377975350,1754640655723,-151.0,0.00018778,2]
[377975351,1754640655732,-155.230302,0.00018778,2]
[377975352,1754640655742,-305.242426,0.00018778,2]
[377975353,1754640655752,-305.242426,0.00018778,2]
[377975354,1754640655761,-305.242426,0.00018778,2]
[377975355,1754640655771,-305.242426,0.00018778,2]
[377975356,1754640655781,-305.242426,0.00018778,2]
[377975357,1754640655790,-305.242426,0.00018778,2]
[377975358,1754640655800,-151.0,0.00018778,2]
[377975359,1754640655810,-151.0,0.00018778,2]
[377975360,1754640655819,-151.0,0.00018778,2]
[377975361,1754640655829,-151.0,0.00018778,2]
[377975362,1754640655839,-151.0,0.00018778,2]
[377975363,1754640655848,-151.0,0.00018778,2]
[377975364,1754640655857,-151.0,0.00018778,2]
[377975365,1754640655867,-151.0,0.00018778,2]
[377975366,1754640655876,-151.0,0.00018778,2]
[377975367,1754640655885,-151.0,0.00018778,2]
[377975368,1754640655895,-150.0,0.00018778,2]
[377975369,1754640655905,-151.0,0.00018778,2]
[377975370,1754640655914,-354.354859,0.00018778,2]
[377975371,1754640655925,-354.354859,0.00018778,2]
[377975372,1754640655935,-155.441264,0.00018778,2]
[377975373,1754640655945,-155.441264,0.00018778,2]
[377975374,1754640655955,-151.0,0.00018778,2]
[377975375,1754640655965,-151.0,0.00018778,2]
[377975376,1754640655976,-151.0,0.00018778,2]
[377975377,1754640655986,-151.0,0.00018778,2]
[377975378,1754640655996,-151.0,0.00018778,2]
[377975379,1754640656006,-151.0,0.00018778,2]
[377975380,1754640656017,-151.0,0.00018778,2]
[377975381,1754640656027,-500.0,0.00018778,2]
[377975382,1754640656036,-178.8297193,0.00018778,2]
[377975383,1754640656046,-151.0,0.00018778,2]
[377975384,1754640656057,-1596.18,0.00018778,2]
[377975385,1754640656068,-1971.51,0.00018778,2]
[377975386,1754640656079,-1335.65,0.00018778,2]
[377975387,1754640656089,-151.0,0.00018778,2]
[377975388,1754640656098,-151.0,0.00018778,2]
[377975389,1754640656109,-1836.35,0.00018778,2]
[377975390,1754640656119,-1108.01,0.00018778,2]
[377975391,1754640656129,-152.962062,0.00018778,2]
[377975392,1754640656139,-152.962062,0.00018778,2]
[377975393,1754640656148,-226.845082,0.00018778,2]
[377975394,1754640656158,-2770.94,0.00018778,2]
[377975395,1754640656168,-1318.12,0.00018778,2]
[377975396,1754640656177,-507.83,0.00018778,2]
[377975397,1754640656187,-151.0,0.00018778,2]
[377975398,1754640656197,-176.60242016,0.0001878,2]
[377975399,1754640656206,-154.84401687,0.00018788,2]
[377975400,1754640656216,-150.0,0.00018798,2]
[377975401,1754640656226,-165.55,0.000188,2]
[377975402,1754640656236,-150.0,0.000188,2]
[377975403,1754640656246,-1070.29645977,0.000188,2]
[377975404,1754640656255,-340.70701207,0.000188,2]
[377975405,1754640656265,-150.0,0.00018802,2]
[377975406,1754640656275,-150.0,0.00018808,2]
[377975407,1754640656285,-250.61055801,0.00018809,2]
[377975408,1754640656294,-154.84401687,0.00018816,2]
[377975409,1754640656304,-5391.81600769,0.00018819,2]
[377975410,1754640656314,-500.0,0.0001882,2]
[377975411,1754640656325,-236.38841812,0.00018823,2]
[377975412,1754640656334,-1070.29645977,0.00018825,2]
[377975413,1754640656344,-151.0,0.00018825,2]
[377975414,1754640656353,-151.0,0.00018825,2]
[377975415,1754640656365,-151.0,0.00018825,2]
[377975416,1754640656374,-151.0,0.00018825,2]
[377975417,1754640656384,-151.0,0.00018825,2]
[377975418,1754640656394,-154.84401687,0.00018844,2]
[377975419,1754640656404,-1070.29645977,0.0001885,2]
[377975420,1754640656414,-340.70701207,0.0001885,2]
[377975421,1754640656424,-150.0,0.00018858,2]
[377975422,1754640656434,-154.84401687,0.00018872,2]
[377975423,1754640656444,-3607.14956482,0.00018874,2]
[377975424,1754640656453,-500.0,0.00018875,2]
[377975425,1754640656463,-1070.29645977,0.00018875,2]
[377975426,1754640656472,-457.64618948,0.00018892,2]
[377975427,1754640656482,-160.0,0.00018892,2]
[377975428,1754640656493,-211.62674257,0.00018892,2]
[377975429,1754640656503,-842.44706758,0.00018892,2]
[377975430,1754640656514,-312.37509156,0.000189,2]
[377975431,1754640656531,-159.31250702,0.000189,2]
[377975432,1754640656545,-151.0,0.000189,2]
[377975433,1754640656556,-502.917184,0.000189,2]
[377975434,1754640656566,-151.0,0.000189,2]
[377975435,1754640656576,-502.917184,0.000189,2]
[377975436,1754640656586,-1070.29645977,0.000189,2]
[377975437,1754640656890,-159.341507,0.000189,2]
[377975438,1754640656900,-159.341507,0.000189,2]
[377975439,1754640656910,-151.0,0.000189,2]
[377975440,1754640656919,-154.84401687,0.000189,2]
[377975441,1754640656929,-206.88692928,0.000189,3]
[377975442,1754640656939,-1090.21759628,0.000189,2]
[377975443,1754640656948,-751.81483726,0.000189,2]
[377975444,1754640656958,-330.35562614,0.000189,2]
[377975445,1754640656968,-340.70701207,0.000189,2]
[377975446,1754640656981,-150.0,0.00018905,2]
[377975447,1754640656991,-200.0,0.0001891,2]
[377975448,1754640657001,-150.0,0.00018915,2]
[377975449,1754640657015,-150.0,0.00018939,2]
[377975450,1754640657025,-663.447,0.00018948,2]
[377975451,1754640657035,-150.0,0.0001895,2]
[377975452,1754640657045,-185.0,0.00018964,2]
[377975453,1754640657055,-500.0,0.00018973,2]
[377975454,1754640657065,-252.00590759,0.00018973,2]
[377975455,1754640657075,-164.61390416,0.00018973,2]
[377975456,1754640657085,-500.0,0.00018973,2]
[377975457,1754640657094,-500.0,0.00018973,2]
[377975458,1754640657104,-500.0,0.00018973,2]
[377975459,1754640657114,-150.0,0.00018979,2]
[377975460,1754640657123,-168.22970333,0.0001899,2]
[377975461,1754640657132,-150.0,0.00018997,2]
[377975462,1754640657141,-1190.338243,0.00018997,7]
[377975463,1754640657150,-166.757556,0.00018997,2]
[377975464,1754640657159,-166.757556,0.00018997,2]
[377975465,1754640657169,-1250.3421159,0.00018997,2]
[377975466,1754640657179,-2797.3880048,0.00018997,2]
[377975467,1754640657189,-250.0684232,0.00018997,2]
[377975468,1754640657199,-479.34,0.00018998,2]
[377975469,1754640657209,-1005.352,0.00018999,2]
[377975470,1754640657219,-151.0,0.00018999,2]
[377975471,1754640657228,-277.409119,0.00018999,2]
[377975472,1754640657237,-151.0,0.00018999,2]
[377975473,1754640657247,-263.101106,0.00018999,2]
[377975474,1754640657257,-239.4566,0.00018999,2]
[377975475,1754640657267,-1000.0,0.00018999,2]
[377975476,1754640657276,-2044525.05318674,0.00019,2]
[377975477,1754640657286,-161019.55197786,0.00019,2]
[377975478,1754640657940,-9204.06667676,0.00019,2]
[377975479,1754640657954,-8043.53620603,0.00019,2]
[377975480,1754640657996,-269.0,0.00018776,2]
[377975481,1754640658008,-216.16,0.00018776,2]
[377975482,1754640658018,-1560.33559999,0.00018777,2]
[377975483,1754640658031,-5699.82440001,0.00018777,2]
[377975484,1754640658040,-1682.44673024,0.00019,2]
[377975485,1754640658771,-400.0,0.00018775,2]
[377975486,1754640658780,-188.0,0.00018775,2]
[377975487,1754640658978,-1000.0,0.00018775,2]
[377975488,1754640659500,-400.56175262,0.00018774,2]
[377975489,1754640659509,-416.58,0.00018775,2]
[377975490,1754640659519,-69.35428003,0.00018775,2]
[377975491,1754640659548,-259.20600004,0.00018775,2]
[377975492,1754640661495,483.28719618,0.00018,2]
[377975493,1754640740639,1601.177338,0.0001802,2]
[377975494,1754640817513,1281.0,0.00030137,120]
[377975496,1754640846899,175.0,0.00017896,7]
[377975498,1754640890834,150.0,0.000159,2]
[377975499,1754640891228,150.0,0.0001708,2]
[377975500,1754640917724,1000.0,0.00017869,2]
[377975501,1754641008818,198.29,0.00017831,2]
[377975502,1754641013888,162.97,0.00017831,2]
[377975505,1754641044408,250.0,0.00017844,2]
[377975506,1754641125990,508.0,0.0001723,2]
[377975507,1754641152268,15864.66,0.00017866,2]
[377975508,1754641168429,239.36,0.00015068,2]
[377975509,1754641168680,239.36,0.00016658,2]
[377975511,1754641421820,150.0,0.000149,2]
[377975512,1754641422258,150.0,0.0001608,2]
[377975513,1754641422967,150.0,0.0001727,2]
[377975522,1754641493829,150.54,0.00017861,2]
[377975523,1754641502880,250.0,0.00015,2]
[377975524,1754641508834,287.91,0.00013699,2]
[377975531,1754641591353,1715.32907603,0.00015,2]
[377975533,1754641642922,402.65,0.00017818,3]
[377975534,1754641715350,150.0,0.00030137,120]
[377975535,1754641722034,10024.17425854,0.000151,2]
[377975536,1754641722061,3193.92668718,0.000151,2]
[377975542,1754641729509,5114.79238345,0.0001,2]
[377975543,1754641764242,232.12,0.00017807,2]
[377975555,1754641831434,-677.54851383,0.00018126,4]
[377975558,1754641831446,-322.45148617,0.00018126,4]
[377975560,1754641831455,-1000.0,0.00018133,4]
[377975561,1754641831465,-250.0,0.00018133,2]
[377975562,1754641831475,-239.36,0.00018247,2]
[377975563,1754641831484,-150.0,0.0001845,2]
[377975564,1754641831493,-3037.24068044,0.00018619,2]
[377975565,1754641831503,-502.55592012,0.00018674,2]
[377975566,1754641831515,-35.25782643,0.00018674,2]
[377975567,1754641831524,-1024.54262667,0.00018674,2]
[377975568,1754641831533,-154.84401687,0.00018675,2]
[377975569,1754641831543,-232.12,0.00018698,2]
[377975570,1754641831552,-229.96552503,0.00018698,2]
[377975571,1754641831580,-37.495218,0.00018698,2]
[377975572,1754641831589,-477.116952,0.00018699,2]
[377975573,1754641831603,-547.4256746,0.00018699,2]
[377975574,1754641831612,-1200.0,0.00018706,2]
[377975575,1754641831622,-300.0,0.00018707,2]
[377975576,1754641831631,-300.0,0.00018707,2]
[377975577,1754641831642,-19518.37,0.00018708,2]
[377975578,1754641831653,-467.4,0.00018717,2]
[377975579,1754641831672,-467.4,0.00018717,2]
[377975580,1754641831684,-467.4,0.00018717,2]
[377975581,1754641831694,-1024.5426266,0.00018724,2]
[377975582,1754641831704,-1024.5426266,0.00018749,2]
[377975583,1754641831713,-432.43,0.00018758,2]
[377975584,1754641831723,-160.0,0.00018764,2]
[377975585,1754641831734,-151.0,0.00018764,2]
[377975586,1754641831744,-500.0,0.00018764,2]
[377975587,1754641831753,-9992.31088601,0.00018764,2]
[377975588,1754641831762,-150.0,0.00018771,2]
[377975589,1754641831772,-500.0,0.00018773,2]
[377975590,1754641831781,-150.29621408,0.00018773,2]
[377975591,1754641831791,-511.17,0.00018773,2]
[377975592,1754641831801,-861.26,0.00018774,2]
[377975593,1754641831810,-400.0,0.00018774,2]
[377975594,1754641831820,-232.18,0.00018774,2]
[377975595,1754641831830,-400.0,0.00018774,2]
[377975596,1754641831840,-400.0,0.00018774,2]
[377975597,1754641831849,-819.66,0.00018774,2]
[377975598,1754641831858,-571.48,0.00018774,2]
[377975599,1754641831867,-400.0,0.00018774,2]
[377975600,1754641831878,-400.0,0.00018774,2]
[377975602,1754641831887,-400.0,0.00018774,2]
[377975604,1754641831896,-463.05,0.00018774,2]
[377975606,1754641831905,-714.8,0.00018774,2]
[377975608,1754641831915,-400.0,0.00018774,2]
[377975610,1754641831924,-1645.1,0.00018774,2]
[377975611,1754641831933,-428.1,0.00018774,2]
[377975612,1754641831942,-639.81,0.00018774,2]
[377975613,1754641831952,-400.0,0.00018774,2]
[377975614,1754641831961,-937.63,0.00018774,2]
[377975615,1754641831971,-485.72,0.00018774,2]
[377975616,1754641831980,-400.0,0.00018774,2]
[377975617,1754641831990,-400.0,0.00018774,2]
[377975619,1754641831999,-400.0,0.00018774,2]
[377975621,1754641832009,-672.39,0.00018774,2]
[377975622,1754641832018,-421.64,0.00018774,2]
[377975623,1754641832029,-400.0,0.00018774,2]
[377975624,1754641832039,-400.0,0.00018774,2]
[377975625,1754641832048,-491.7,0.00018774,2]
[377975626,1754641832057,-1391.68,0.00018774,2]
[377975627,1754641832067,-723.47,0.00018774,2]
[377975628,1754641832077,-598.05,0.00018774,2]
[377975629,1754641832087,-641.07,0.00018774,2]
[377975630,1754641832096,-656.18,0.00018774,2]
[377975631,1754641832106,-416.72,0.00018774,2]
[377975632,1754641832117,-400.0,0.00018774,2]
[377975633,1754641832372,-748.2,0.00018774,2]
[377975634,1754641832434,-1086.73,0.00018774,2]
[377975635,1754641832444,-957.82,0.00018774,2]
[377975636,1754641832455,-329.85597488,0.00018774,2]
[377975637,1754641832465,-970.5,0.00018774,2]
[377975638,1754641832474,-400.0,0.00018774,2]
[377975639,1754641832483,-879.71,0.00018774,2]
[377975640,1754641832493,-914.61,0.00018774,2]
[377975641,1754641832502,-893.74,0.00018774,2]
[377975642,1754641832512,-773.16,0.00018774,2]
[377975643,1754641832522,-864.66,0.00018774,2]
[377975644,1754641832532,-400.0,0.00018774,2]
[377975645,1754641832541,-964.5,0.00018774,2]
[377975646,1754641832550,-481.86,0.00018774,2]
[377975647,1754641832561,-794.25,0.00018774,2]
[377975648,1754641832575,-513.2,0.00018774,2]
[377975649,1754641832585,-578.33,0.00018774,2]
[377975650,1754641832596,-943.3,0.00018774,2]
[377975651,1754641832606,-1198.17,0.00018774,2]
[377975652,1754641832615,-662.87,0.00018774,2]
[377975653,1754641832626,-809.39,0.00018774,2]
[377975654,1754641832636,-777.81,0.00018774,2]
[377975655,1754641832645,-1040.62,0.00018774,2]
[377975656,1754641832655,-770.98,0.00018774,2]
[377975657,1754641832666,-1039.9,0.00018774,2]
[377975658,1754641832677,-973.64,0.00018774,2]
[377975659,1754641832687,-958.92,0.00018774,2]
[377975660,1754641832697,-400.0,0.00018774,2]
[377975661,1754641832708,-864.38,0.00018774,2]
[377975662,1754641832718,-494.91,0.00018774,2]
[377975663,1754641832727,-782.24,0.00018774,2]
[377975664,1754641832738,-400.0,0.00018774,2]
[377975665,1754641832747,-1212.39,0.00018774,2]
[377975666,1754641832756,-400.0,0.00018774,2]
[377975667,1754641832766,-787.91,0.00018774,2]
[377975668,1754641832775,-686.48,0.00018774,2]
[377975669,1754641832785,-400.0,0.00018774,2]
[377975670,1754641832794,-482.59,0.00018774,2]
[377975671,1754641832806,-400.0,0.00018774,2]
[377975672,1754641832815,-400.0,0.00018774,2]
[377975673,1754641832824,-400.0,0.00018774,2]
[377975674,1754641832834,-582.44,0.00018774,2]
[377975675,1754641832843,-579.82,0.00018774,2]
[377975676,1754641832853,-400.0,0.00018774,2]
[377975677,1754641832862,-915.25,0.00018774,2]
[377975678,1754641832871,-1247.61,0.00018774,2]
[377975679,1754641832880,-400.0,0.00018774,2]
[377975680,1754641832889,-893.36,0.00018774,2]
[377975681,1754641832899,-400.0,0.00018774,2]
[377975682,1754641832909,-629.44,0.00018774,2]
[377975683,1754641832918,-836.79,0.00018774,2]
[377975684,1754641832927,-400.0,0.00018774,2]
[377975685,1754641832935,-400.0,0.00018774,2]
[377975686,1754641832945,-791.65,0.00018774,2]
[377975687,1754641832955,-1113.61,0.00018774,2]
[377975688,1754641832966,-1049.18,0.00018774,2]
[377975689,1754641832976,-1303.71,0.00018774,2]
[377975690,1754641832986,-400.0,0.00018774,2]
[377975691,1754641832995,-1021.08,0.00018774,2]
[377975692,1754641833005,-823.67,0.00018774,2]
[377975693,1754641833014,-696.78,0.00018774,2]
[377975694,1754641833024,-870.55,0.00018774,2]
[377975695,1754641833033,-1044.13,0.00018774,2]
[377975696,1754641833042,-899.17,0.00018774,2]
[377975697,1754641833052,-400.0,0.00018774,2]
[377975698,1754641833062,-814.59,0.00018774,2]
[377975699,1754641833073,-1240.97,0.00018774,2]
[377975700,1754641833082,-612.25,0.00018774,2]
[377975701,1754641833091,-480.46,0.00018774,2]
[377975702,1754641833100,-370.403157,0.00018774,2]
[377975703,1754641833110,-1171.6,0.00018774,2]
[377975704,1754641833119,-400.0,0.00018774,2]
[377975705,1754641833129,-400.0,0.00018774,2]
[377975706,1754641833138,-400.0,0.00018774,2]
[377975707,1754641833147,-996.16,0.00018774,2]
[377975708,1754641833157,-439.518254,0.00018774,2]
[377975709,1754641833166,-684.53,0.00018774,2]
[377975710,1754641833175,-520.88,0.00018774,2]
[377975711,1754641833184,-1514.04,0.00018774,2]
[377975712,1754641833194,-573.08,0.00018774,2]
[377975713,1754641833203,-630.69,0.00018774,2]
[377975714,1754641833213,-641.66,0.00018774,2]
[377975715,1754641833222,-1334.31,0.00018774,2]
[377975716,1754641833231,-715.27,0.00018774,2]
[377975717,1754641833240,-467.98,0.00018774,2]
[377975718,1754641833249,-1432.3,0.00018774,2]
[377975719,1754641833258,-845.65,0.00018774,2]
[377975720,1754641833267,-400.0,0.00018774,2]
[377975721,1754641833278,-874.87,0.00018774,2]
[377975722,1754641833289,-400.0,0.00018774,2]
[377975723,1754641833299,-190.0,0.00018774,2]
[377975724,1754641833308,-400.0,0.00018774,2]
[377975725,1754641833317,-400.0,0.00018774,2]
[377975726,1754641833328,-753.06,0.00018774,2]
[377975727,1754641833337,-1177.37,0.00018774,2]
[377975728,1754641833347,-400.0,0.00018774,2]
[377975729,1754641833358,-688.18,0.00018774,2]
[377975730,1754641833367,-864.76,0.00018774,2]
[377975731,1754641833378,-1070.34,0.00018774,2]
[377975732,1754641833387,-1631.49,0.00018774,2]
[377975733,1754641833396,-678.62,0.00018774,2]
[377975734,1754641833406,-559.53,0.00018774,2]
[377975735,1754641833415,-544.52,0.00018774,2]
[377975736,1754641833424,-444.59,0.00018774,2]
[377975737,1754641833433,-769.41,0.00018774,2]
[377975738,1754641833442,-1242.34,0.00018774,2]
[377975739,1754641833452,-719.91,0.00018774,2]
[377975740,1754641833463,-1088.34,0.00018774,2]
[377975741,1754641833472,-1882.61,0.00018774,2]
[377975742,1754641833482,-663.15,0.00018774,2]
[377975743,1754641833491,-400.0,0.00018774,2]
[377975744,1754641833501,-656.85,0.00018774,2]
[377975745,1754641833510,-806.7,0.00018774,2]
[377975746,1754641833519,-1181.34,0.00018774,2]
[377975747,1754641833534,-985.44,0.00018774,2]
[377975748,1754641833546,-1587.96,0.00018774,2]
[377975749,1754641833555,-831.26,0.00018774,2]
[377975750,1754641833565,-1487.86,0.00018774,2]
[377975751,1754641833575,-406.88,0.00018774,2]
[377975752,1754641833585,-870.4,0.00018774,2]
[377975753,1754641833594,-724.77,0.00018774,2]
[377975754,1754641833603,-878.49,0.00018774,2]
[377975755,1754641833614,-400.0,0.00018774,2]
[377975756,1754641833627,-987.18,0.00018774,2]
[377975757,1754641833637,-685.4,0.00018774,2]
[377975758,1754641833647,-1930.92,0.00018774,2]
[377975759,1754641833657,-1394.47,0.00018774,2]
[377975760,1754641833667,-400.0,0.00018774,2]
[377975761,1754641833676,-474.59,0.00018774,2]
[377975762,1754641833685,-400.0,0.00018774,2]
[377975763,1754641833694,-425.82,0.00018774,2]
[377975764,1754641833704,-400.0,0.00018774,2]
[377975765,1754641833714,-640.32,0.00018774,2]
[377975766,1754641833723,-1064.57,0.00018774,2]
[377975767,1754641833732,-657.33,0.00018774,2]
[377975768,1754641833742,-637.2,0.00018774,2]
[377975769,1754641833751,-280.0,0.00018774,2]
[377975770,1754641833761,-1161.92,0.00018774,2]
[377975771,1754641833771,-674.43,0.00018774,2]
[377975772,1754641833780,-400.0,0.00018774,2]
[377975773,1754641833790,-758.07,0.00018774,2]
[377975774,1754641833799,-408.507692,0.00018774,2]
[377975775,1754641833809,-2091.73,0.00018774,2]
[377975776,1754641833818,-400.0,0.00018774,2]
[377975777,1754641833828,-725.9,0.00018774,2]
[377975778,1754641833837,-726.98,0.00018774,2]
[377975779,1754641833846,-400.0,0.00018774,2]
[377975780,1754641833855,-483.5,0.00018774,2]
[377975781,1754641833865,-999.25,0.00018774,2]
[377975782,1754641833875,-400.0,0.00018774,2]
[377975783,1754641833884,-1098.46,0.00018774,2]
[377975784,1754641833894,-400.0,0.00018774,2]
[377975785,1754641833904,-1044.52,0.00018774,2]
[377975786,1754641833914,-775.59,0.00018774,2]
[377975787,1754641833924,-1356.05,0.00018774,2]
[377975788,1754641833933,-800.65,0.00018774,2]
[377975789,1754641833942,-546.95,0.00018774,2]
[377975790,1754641833952,-1060.44,0.00018774,2]
[377975791,1754641833962,-770.38,0.00018774,2]
[377975792,1754641833972,-401.5402824,0.00018774,2]
[377975793,1754641833981,-668.55,0.00018774,2]
[377975794,1754641833991,-1072.28,0.00018774,2]
[377975795,1754641834000,-400.0,0.00018774,2]
[377975796,1754641834010,-400.0,0.00018774,2]
[377975797,1754641834019,-1106.96,0.00018774,2]
[377975798,1754641834029,-964.25,0.00018774,2]
[377975799,1754641834039,-372.72775284,0.00018774,2]
[377975800,1754641834581,-27.27224716,0.00018774,2]
[377975801,1754641834591,-990.79,0.00018774,2]
[377975802,1754641834601,-493.98,0.00018774,2]
[377975803,1754641834610,-684.54,0.00018774,2]
[377975804,1754641834619,-676.74,0.00018774,2]
[377975805,1754641834630,-511.42,0.00018774,2]
[377975806,1754641834640,-1405.5,0.00018774,2]
[377975807,1754641834649,-819.8,0.00018774,2]
[377975808,1754641834659,-914.93,0.00018774,2]
[377975809,1754641834667,-1112.51,0.00018774,2]
[377975810,1754641834677,-400.0,0.00018774,2]
[377975811,1754641834687,-718.94,0.00018774,2]
[377975812,1754641834696,-588.42,0.00018774,2]
[377975813,1754641834706,-179.53071716,0.00018774,2]
[377975814,1754641834715,-400.0,0.00018774,2]
[377975815,1754641834725,-1000.28,0.00018774,2]
[377975816,1754641834734,-400.0,0.00018774,2]
[377975817,1754641834743,-400.0,0.00018774,2]
[377975818,1754641834753,-698.49,0.00018774,2]
[377975819,1754641834762,-1410.08,0.00018774,2]
[377975820,1754641834771,-400.0,0.00018774,2]
[377975821,1754641834780,-435.52,0.00018774,2]
[377975822,1754641834790,-1398.19,0.00018774,2]
[377975823,1754641834799,-400.0,0.00018774,2]
[377975824,1754641834808,-931.48,0.00018774,2]
[377975825,1754641834818,-400.0,0.00018774,2]
[377975826,1754641834827,-1741.08,0.00018774,2]
[377975827,1754641834836,-431.34,0.00018774,2]
[377975828,1754641834846,-731.51,0.00018774,2]
[377975829,1754641834856,-816.52,0.00018774,2]
[377975830,1754641834866,-1141.08,0.00018774,2]
[377975831,1754641834877,-5801.92,0.00018774,2]
[377975832,1754641834886,-1161.94,0.00018774,2]
[377975833,1754641834895,-450.75,0.00018774,2]
[377975834,1754641834904,-400.85,0.00018774,2]
[377975835,1754641834913,-1519.64,0.00018774,2]
[377975836,1754641834922,-1717.65,0.00018774,2]
[377975837,1754641834933,-400.0,0.00018774,2]
[377975838,1754641834942,-768.49,0.00018774,2]
[377975839,1754641834952,-1063.1,0.00018774,2]
[377975840,1754641834961,-1333.16,0.00018774,2]
[377975841,1754641834971,-400.0,0.00018774,2]
[377975842,1754641834980,-748.28,0.00018774,2]
[377975843,1754641834990,-433.8,0.00018774,2]
[377975844,1754641834999,-1245.44,0.00018774,2]
[377975845,1754641835008,-411.15,0.00018774,2]
[377975846,1754641835017,-576.97,0.00018774,2]
[377975847,1754641835027,-400.0,0.00018774,2]
[377975848,1754641835037,-400.0,0.00018774,2]
[377975849,1754641835046,-702.82,0.00018774,2]
[377975850,1754641835055,-400.0,0.00018774,2]
[377975851,1754641835064,-400.0,0.00018774,2]
[377975852,1754641835074,-400.0,0.00018774,2]
[377975853,1754641835083,-919.62,0.00018774,2]
[377975854,1754641835092,-400.0,0.00018774,2]
[377975855,1754641835101,-1358.4,0.00018774,2]
[377975856,1754641835110,-1203.58,0.00018774,2]
[377975857,1754641835119,-239.74102388,0.00018774,2]
[377975858,1754641835132,-1232.01,0.00018774,2]
[377975859,1754641835141,-701.02,0.00018774,2]
[377975860,1754641835150,-2598.94,0.00018774,2]
[377975861,1754641835159,-536.04,0.00018774,2]
[377975862,1754641835169,-703.67,0.00018774,2]
[377975863,1754641835179,-1537.72,0.00018774,2]
[377975864,1754641835189,-2241.27,0.00018774,2]
[377975865,1754641835199,-400.0,0.00018774,2]
[377975866,1754641835209,-1569.55,0.00018774,2]
[377975867,1754641835219,-890.81,0.00018774,2]
[377975868,1754641835228,-1031.42,0.00018774,2]
[377975869,1754641835238,-507.67,0.00018774,2]
[377975870,1754641835247,-400.0,0.00018774,2]
[377975871,1754641835256,-712.01,0.00018774,2]
[377975872,1754641835266,-400.0,0.00018774,2]
[377975873,1754641835276,-1344.61,0.00018774,2]
[377975874,1754641835290,-400.0,0.00018774,2]
[377975875,1754641835300,-400.0,0.00018774,2]
[377975876,1754641835309,-720.15,0.00018774,2]
[377975877,1754641835318,-400.0,0.00018774,2]
[377975878,1754641835330,-804.33,0.00018774,2]
[377975879,1754641835340,-820.41,0.00018774,2]
[377975880,1754641835349,-400.0,0.00018774,2]
[377975881,1754641835359,-267.44,0.00018774,2]
[377975882,1754641835368,-923.47,0.00018774,2]
[377975883,1754641835386,-400.0,0.00018774,2]
[377975884,1754641835395,-497.65,0.00018774,2]
[377975885,1754641835404,-457.08610443,0.00018774,2]
[377975886,1754641835414,-999.74,0.00018774,2]
[377975887,1754641835423,-400.0,0.00018774,2]
[377975888,1754641835433,-689.9,0.00018774,2]
[377975889,1754641835443,-466.12,0.00018774,2]
[377975890,1754641835454,-987.11,0.00018774,2]